bitfinex/quotes_BTCUSD_20220303
["timestamp","ask_amount","ask_price","bid_price","bid_amount"]
[1646289373888,0.19011785,43381.0,43378.0,0.007]
[1646289374087,0.23973788,43380.0,43378.0,0.007]
[1646289374689,0.23973788,43380.0,43373.0,0.057653]
[1646289375386,0.23973788,43380.0,43369.0,0.32826789]
[1646289375591,0.02302,43379.0,43369.0,0.115305]
[1646289375789,0.02302,43379.0,43368.0,0.007]
[1646289375987,0.02263919,43379.0,43368.0,0.007]
[1646289376587,0.23973788,43380.0,43368.0,0.007]
[1646289376789,0.17059455,43379.0,43364.0,0.35642156]
[1646289376986,0.17059455,43379.0,43363.0,0.11296289]
[1646289376987,0.20607725,43377.0,43367.0,0.057661]
[1646289377446,0.20607725,43377.0,43363.0,0.15936289]
[1646289377447,0.20607725,43377.0,43364.0,0.005]
[1646289377652,0.17059455,43379.0,43364.0,0.36142156]
[1646289377847,0.23973788,43380.0,43366.0,0.11296289]
[1646289378048,0.00010525,43382.0,43371.0,0.11296289]
[1646289378255,0.00010525,43382.0,43375.0,0.11296289]
[1646289378447,0.00010525,43382.0,43376.0,0.0464]
[1646289378647,0.16281776,43385.0,43379.0,0.0576403]
[1646289378848,0.16281776,43385.0,43379.0,0.0464]
[1646289379050,0.22846099,43381.0,43379.0,0.0464]
[1646289379948,0.16281776,43385.0,43379.0,0.0464]
[1646289380148,0.00016304,43382.0,43379.0,0.0464]
[1646289380949,0.27182535,43381.0,43379.0,0.0464]
[1646289382996,0.27182535,43381.0,43373.0,0.35303295]
[1646289383500,0.21543863,43386.0,43379.0,0.006]
[1646289383698,0.00014907,43382.0,43379.0,0.006]
[1646289384598,0.17299845,43385.0,43379.0,0.006]
[1646289384842,0.00014908,43383.0,43373.0,0.35303295]
[1646289385244,0.00014908,43383.0,43374.0,0.88695219]
[1646289385544,0.00014908,43383.0,43382.0,0.11296289]
[1646289385745,6.41690425,43388.0,43382.0,0.0464]
[1646289386146,9.858e-05,43385.0,43382.0,0.0464]
[1646289387041,0.26958678,43387.0,43382.0,0.0464]
[1646289387442,0.0001449,43386.0,43382.0,0.0534]
[1646289387843,0.0001449,43386.0,43383.0,0.35642156]
[1646289388042,0.0001449,43386.0,43384.0,0.0464]
[1646289388244,0.0001449,43386.0,43385.0,0.0464]
[1646289388443,6.5881329,43388.0,43385.0,0.0464]
[1646289388698,0.0001449,43387.0,43385.0,0.0464]
[1646289388900,0.21274879,43386.0,43385.0,0.0464]
[1646289389495,0.21274879,43386.0,43385.0,0.0524]
[1646289390396,0.26105649,43387.0,43385.0,0.0524]
[1646289390795,0.26105649,43387.0,43385.0,0.006]
[1646289390796,0.17270824,43386.0,43385.0,0.006]
[1646289391995,0.17270824,43386.0,43385.0,0.0001]
[1646289392845,0.26525233,43378.0,43375.0,0.01152]
[1646289393050,0.02302,43385.0,43375.0,0.01152]
[1646289393446,0.00014571,43382.0,43375.0,0.01752]
[1646289394049,0.20590331,43380.0,43375.0,0.01752]
[1646289394249,0.16519556,43382.0,43381.0,0.3061146]
[1646289394447,0.16504985,43382.0,43381.0,0.3061146]
[1646289394650,0.16519557,43382.0,43381.0,0.3061146]
[1646289394854,0.56281428,43382.0,43381.0,0.3061146]
[1646289395050,0.42021914,43382.0,43381.0,0.3061146]
[1646289395250,0.78080074,43382.0,43381.0,0.3061146]
[1646289395649,0.96368532,43382.0,43381.0,0.3061146]
[1646289395849,0.60310372,43382.0,43381.0,0.3061146]
[1646289396897,0.96368532,43382.0,43381.0,0.3061146]
[1646289398001,1.67088532,43382.0,43381.0,0.3061146]
[1646289398396,0.96368532,43382.0,43381.0,0.3061146]
[1646289398597,0.60310372,43382.0,43381.0,0.3061146]
[1646289398796,0.56606661,43382.0,43381.0,0.3061146]
[1646289399598,0.57006661,43382.0,43381.0,0.3061146]
[1646289400843,0.56606661,43382.0,43381.0,0.3061146]
[1646289401442,0.91873777,43382.0,43381.0,0.3061146]
[1646289401845,0.56606661,43382.0,43381.0,0.3061146]
[1646289402045,1.27326661,43382.0,43381.0,0.3061146]
[1646289402443,0.7072,43380.0,43360.0,0.19134695]
[1646289402644,1.02302,43381.0,43358.0,0.30445611]
[1646289402645,0.02302,43370.0,43358.0,0.30445611]
[1646289402845,0.02302,43370.0,43358.0,0.30430984]
[1646289403044,0.02302,43370.0,43358.0,0.30445609]
[1646289403245,0.20827934,43365.0,43358.0,0.30445609]
[1646289403445,0.20827934,43365.0,43358.0,0.00014625]
[1646289403994,0.20827934,43365.0,43356.0,0.19134695]
[1646289404194,0.20827934,43365.0,43355.0,0.1]
[1646289404195,0.20827934,43365.0,43358.0,0.00014623]
[1646289404396,0.17916023,43366.0,43358.0,0.00014623]
[1646289404592,0.057683,43373.0,43358.0,0.00014623]
[1646289404793,0.17611832,43368.0,43358.0,0.00014623]
[1646289404992,0.35423076,43372.0,43358.0,0.00014623]
[1646289405194,0.03703711,43370.0,43354.0,0.11296289]
[1646289405392,0.26985722,43366.0,43358.0,0.00014614]
[1646289405593,0.49303428,43366.0,43358.0,0.00014614]
[1646289406092,0.02302,43365.0,43358.0,0.00014614]
[1646289406495,0.02302,43365.0,43346.0,0.19181086]
[1646289406694,0.37772521,43365.0,43358.0,0.00014614]
[1646289406899,0.73022,43365.0,43358.0,0.00014614]
[1646289407096,0.55914147,43364.0,43358.0,0.00014614]
[1646289407543,0.02302,43358.0,43343.0,0.30477375]
[1646289407743,0.28027324,43351.0,43343.0,0.30477375]
[1646289407945,0.05,43363.0,43345.0,0.05769]
[1646289408145,0.05,43363.0,43345.0,0.78791]
[1646289408344,0.2389,43370.0,43355.0,0.11296289]
[1646289408544,0.2389,43370.0,43356.0,0.3618367]
[1646289408744,0.2389,43370.0,43355.0,0.11296289]
[1646289408945,0.28460672,43362.0,43359.0,1.86525734]
[1646289409345,0.37344629,43366.0,43359.0,1.86525734]
[1646289409550,0.05,43371.0,43359.0,1.87225734]
[1646289409745,0.09471511,43375.0,43359.0,1.87225734]
[1646289409945,0.02302,43374.0,43359.0,0.007]
[1646289410345,0.2152799,43366.0,43359.0,0.007]
[1646289410547,0.37900828,43366.0,43359.0,0.007]
[1646289410847,0.02302,43370.0,43358.0,0.00014616]
[1646289411104,0.58343512,43374.0,43363.0,0.11296289]
[1646289411105,0.2299,43374.0,43363.0,0.11296289]
[1646289411303,1.1855,43379.0,43364.0,0.0464]
[1646289411502,0.4708,43382.0,43364.0,0.0464]
[1646289411702,0.47094608,43382.0,43364.0,0.4082367]
[1646289412107,0.02302,43371.0,43360.0,0.11296289]
[1646289412505,0.39061339,43373.0,43358.0,0.005]
[1646289412904,0.21375486,43370.0,43358.0,0.00014616]
[1646289413206,0.20051241,43369.0,43358.0,0.11310905]
[1646289413604,0.20051241,43369.0,43358.0,0.11910905]
[1646289413804,0.20051241,43369.0,43358.0,0.11896289]
[1646289414004,0.20051241,43369.0,43358.0,0.11910904]
[1646289414404,0.25192,43377.0,43360.0,0.057669]
[1646289414607,0.25192,43377.0,43361.0,0.0464]
[1646289415238,0.16480736,43373.0,43361.0,0.0464]
[1646289415537,0.20547945,43369.0,43361.0,0.0534]
[1646289416136,0.16102332,43366.0,43361.0,0.0534]
[1646289416736,0.22849945,43369.0,43361.0,0.0464]
[1646289416937,0.20547945,43369.0,43361.0,0.0464]
[1646289418338,0.11081345,43369.0,43361.0,0.0464]
[1646289418991,0.11081345,43369.0,43361.0,0.15936289]
[1646289420190,0.20648768,43371.0,43361.0,0.0464]
[1646289420587,0.20648768,43371.0,43361.0,0.15936289]
[1646289420988,0.20648768,43371.0,43361.0,0.0464]
[1646289421588,0.26487016,43374.0,43361.0,0.0464]
[1646289421792,0.26487016,43374.0,43361.0,0.15936289]
[1646289422189,0.26487016,43374.0,43362.0,0.36097634]
[1646289422437,0.26487016,43374.0,43363.0,0.0464]
[1646289422635,0.45446959,43374.0,43362.0,0.36097634]
[1646289422840,0.45446959,43374.0,43361.0,0.11296289]
[1646289423638,0.19776667,43373.0,43361.0,0.11296289]
[1646289423839,0.22283839,43367.0,43361.0,0.11796289]
[1646289424038,0.39942548,43367.0,43361.0,0.005]
[1646289424237,0.02302,43375.0,43368.0,0.11278696]
[1646289424440,0.080696,43375.0,43368.0,0.11278696]
[1646289425041,0.23700362,43374.0,43368.0,0.11278696]
[1646289425240,0.19920208,43370.0,43368.0,0.11278696]
[1646289426109,0.23700362,43374.0,43368.0,0.11578696]
[1646289427311,0.15993561,43380.0,43368.0,0.11278696]
[1646289427814,0.15771066,43376.0,43368.0,0.11278696]
[1646289428210,0.15993561,43380.0,43368.0,0.11278696]
[1646289428412,0.2303,43382.0,43369.0,0.35777606]
[1646289428614,0.2303,43382.0,43370.0,0.15936289]
[1646289428913,0.2303,43382.0,43373.0,0.11296289]
[1646289429112,0.05,43385.0,43374.0,0.0464]
[1646289429316,0.2471,43386.0,43374.0,0.0464]
[1646289429512,0.22770868,43381.0,43377.0,2.76131328]
[1646289429712,0.001,43389.0,43378.0,0.40417606]
[1646289429956,0.001,43389.0,43379.0,0.11296289]
[1646289430159,0.001,43389.0,43380.0,0.0464]
[1646289430367,0.001,43389.0,43381.0,0.48510558]
[1646289430556,0.00017031,43382.0,43381.0,0.48510558]
[1646289430757,0.00017031,43382.0,43381.0,0.17372952]
[1646289431157,0.001,43389.0,43381.0,0.17372952]
[1646289431357,0.00017031,43384.0,43381.0,0.0464]
[1646289431958,0.00017031,43384.0,43381.0,0.0524]
[1646289432357,0.42600196,43386.0,43381.0,0.0524]
[1646289432559,0.00017031,43385.0,43381.0,0.0524]
[1646289433360,0.00017031,43385.0,43381.0,0.0464]
[1646289433588,0.42600196,43386.0,43381.0,0.0464]
[1646289433794,0.00017031,43385.0,43381.0,0.0464]
[1646289434092,0.00017031,43385.0,43381.0,0.0534]
[1646289434692,0.21829429,43386.0,43381.0,0.0534]
[1646289434894,0.001,43389.0,43381.0,0.0534]
[1646289435192,0.05050192,43390.0,43381.0,0.0464]
[1646289435892,0.21882894,43388.0,43381.0,0.0464]
[1646289436895,0.05050192,43390.0,43381.0,0.0464]
[1646289437550,0.05050192,43390.0,43386.0,0.11296289]
[1646289437551,0.00169452,43390.0,43386.0,0.11296289]
[1646289437751,0.00169452,43390.0,43389.0,0.11296289]
[1646289437949,0.00169452,43390.0,43389.0,0.15936289]
[1646289438349,0.00169452,43390.0,43389.0,0.21698289]
[1646289439851,0.00169452,43390.0,43389.0,0.59777895]
[1646289440054,0.00169452,43390.0,43389.0,0.60677895]
[1646289440354,0.00169452,43390.0,43389.0,0.68375895]
[1646289440554,0.00169452,43390.0,43389.0,0.32598289]
[1646289441206,0.00169452,43390.0,43389.0,0.58375895]
[1646289441405,0.00169452,43390.0,43389.0,0.31698289]
[1646289442607,0.00169452,43390.0,43389.0,0.0464]
[1646289442808,0.00169452,43390.0,43384.0,0.008]
[1646289443205,0.00169452,43390.0,43373.0,0.11296289]
[1646289443410,0.00017047,43389.0,43373.0,0.11296289]
[1646289443615,0.00017047,43389.0,43372.0,0.115297]
[1646289443616,0.16740498,43381.0,43372.0,0.115297]
[1646289443807,0.16740498,43381.0,43373.0,0.61296289]
[1646289444007,0.16740498,43381.0,43373.0,0.006]
[1646289444209,0.35777606,43380.0,43373.0,0.006]
[1646289444950,0.21550067,43374.0,43373.0,0.006]
[1646289445355,0.21550067,43374.0,43368.0,0.11278696]
[1646289446151,0.35777606,43382.0,43368.0,0.11778696]
[1646289446350,0.00016689,43387.0,43368.0,0.11778696]
[1646289446351,0.20822775,43380.0,43368.0,0.11778696]
[1646289446651,0.35777606,43379.0,43368.0,0.11778696]
[1646289447154,0.22199782,43375.0,43368.0,0.11778696]
[1646289447350,0.17181461,43377.0,43368.0,0.11278696]
[1646289448150,0.17181461,43377.0,43368.0,0.11778696]
[1646289449025,0.22343883,43374.0,43368.0,0.11778696]
[1646289449226,0.17181461,43377.0,43368.0,0.11778696]
[1646289449426,0.17181461,43377.0,43368.0,0.11278696]
[1646289450026,0.17181461,43377.0,43368.0,0.11778696]
[1646289450727,0.25364933,43373.0,43368.0,0.11778696]
[1646289450929,0.17181461,43377.0,43368.0,0.11778696]
[1646289451232,0.17181461,43377.0,43368.0,0.11278696]
[1646289452228,0.17181461,43377.0,43368.0,0.11778696]
[1646289452847,0.15866705,43382.0,43368.0,0.17544696]
[1646289453051,0.23216625,43377.0,43368.0,0.17544696]
[1646289453442,0.15866705,43382.0,43368.0,0.17044696]
[1646289453844,0.17247385,43381.0,43368.0,0.17044696]
[1646289454043,0.17247385,43381.0,43368.0,0.17544696]
[1646289454444,0.17247385,43381.0,43369.0,0.11296289]
[1646289455443,0.17247385,43381.0,43368.0,0.11278696]
[1646289455444,0.26607758,43373.0,43368.0,0.11278696]
[1646289455643,0.17247385,43381.0,43376.0,0.24602448]
[1646289455845,0.25244855,43380.0,43376.0,0.24602448]
[1646289460039,0.43006286,43380.0,43376.0,0.25002448]
[1646289461242,0.32567585,43379.0,43376.0,0.24602448]
[1646289461450,0.32567585,43379.0,43363.0,0.01152]
[1646289461451,1.7072,43376.0,43363.0,0.01152]
[1646289461644,1.7072,43376.0,43362.0,0.00014996]
[1646289461645,0.74423711,43373.0,43362.0,0.00014996]
[1646289461841,0.16992821,43363.0,43362.0,0.00014996]
[1646289462439,0.16992821,43363.0,43358.0,0.004]
[1646289463699,0.26372866,43359.0,43358.0,0.004]
[1646289464098,0.26372866,43359.0,43358.0,0.009]
[1646289465501,0.26372866,43359.0,43341.0,0.7479]
[1646289465502,0.26372866,43359.0,43345.0,0.55038613]
[1646289465799,0.26372866,43359.0,43344.0,0.19174201]
[1646289466000,0.26372866,43359.0,43343.0,0.3047049]
[1646289466001,0.21625319,43351.0,43343.0,0.3047049]
[1646289466204,0.16773226,43355.0,43350.0,0.00016333]
[1646289466599,0.16134,43359.0,43350.0,0.00016333]
[1646289466803,0.09961751,43359.0,43350.0,0.00016333]
[1646289467198,0.19561341,43360.0,43345.0,0.35864412]
[1646289467438,0.19561341,43360.0,43352.0,0.00016333]
[1646289467641,0.37651779,43360.0,43352.0,0.00016333]
[1646289468037,0.19561341,43360.0,43352.0,0.00016333]
[1646289468238,0.057694,43360.0,43352.0,0.00016333]
[1646289468437,0.2476,43363.0,43348.0,0.11296289]
[1646289468640,0.2476,43363.0,43354.0,0.00016332]
[1646289469738,0.2476,43363.0,43356.0,0.00015498]
[1646289470242,0.96183599,43369.0,43356.0,0.00015498]
[1646289470243,0.173093,43369.0,43356.0,0.00015498]
[1646289470443,0.8252,43375.0,43362.0,0.11296289]
[1646289470640,0.2308,43375.0,43368.0,0.11296289]
[1646289470939,0.4754,43383.0,43369.0,0.0464]
[1646289471214,0.610038,43384.0,43370.0,0.0464]
[1646289471215,0.24735,43374.0,43370.0,0.0464]
[1646289471416,0.18747564,43376.0,43371.0,0.0464]
[1646289471614,0.18747564,43376.0,43356.0,0.48070598]
[1646289471615,0.18747564,43376.0,43363.0,0.0464]
[1646289472713,0.17634325,43371.0,43363.0,0.0464]
[1646289474415,0.057677,43373.0,43363.0,0.0464]
[1646289474623,0.1,43375.0,43363.0,0.0464]
[1646289474624,0.000501,43371.0,43363.0,0.0464]
[1646289475647,0.000501,43371.0,43363.0,0.104066]
[1646289476046,0.000501,43371.0,43363.0,0.0464]
[1646289476848,0.000501,43371.0,43366.0,0.004]
[1646289478050,0.000501,43371.0,43363.0,0.104066]
[1646289478906,0.000501,43371.0,43363.0,0.109066]
[1646289479102,0.000501,43371.0,43365.0,0.11296289]
[1646289479300,0.000501,43371.0,43366.0,0.0464]
[1646289479904,0.1881883,43369.0,43366.0,0.0464]
[1646289480505,0.19990577,43367.0,43355.0,0.15936289]
[1646289480705,0.35700376,43366.0,43362.0,0.00014984]
[1646289480901,0.1881883,43369.0,43362.0,0.00014984]
[1646289481101,0.35700376,43368.0,43362.0,0.00014984]
[1646289481702,0.18052397,43367.0,43361.0,0.005]
[1646289481902,0.18052397,43367.0,43362.0,0.00014501]
[1646289482102,0.27154731,43365.0,43362.0,0.00014501]
[1646289482344,0.35700376,43368.0,43362.0,0.00014501]
[1646289482547,0.2458693,43369.0,43362.0,0.00014501]
[1646289482843,0.35700376,43368.0,43362.0,0.00014501]
[1646289483044,0.35700376,43368.0,43357.0,0.005]
[1646289483245,0.2458693,43369.0,43357.0,0.005]
[1646289483445,0.23744088,43366.0,43357.0,0.005]
[1646289484145,0.17406878,43362.0,43357.0,0.005]
[1646289484348,0.23744088,43366.0,43353.0,0.4444]
[1646289484745,0.23744088,43366.0,43354.0,0.057678]
[1646289485346,0.18277815,43365.0,43354.0,0.057678]
[1646289485548,0.18277815,43365.0,43358.0,0.00016361]
[1646289485747,0.100501,43371.0,43368.0,0.09200593]
[1646289485748,0.19944018,43369.0,43368.0,0.09200593]
[1646289486209,0.100501,43371.0,43368.0,0.09200593]
[1646289486409,0.000501,43371.0,43368.0,0.09200593]
[1646289486612,0.21923962,43370.0,43368.0,0.09200593]
[1646289487409,0.42182641,43370.0,43368.0,0.09200593]
[1646289489712,0.42182641,43370.0,43368.0,0.09700593]
[1646289490659,0.21923962,43370.0,43368.0,0.09700593]
[1646289490860,0.000501,43371.0,43368.0,0.09700593]
[1646289491058,0.000501,43371.0,43368.0,0.09200593]
[1646289493255,0.000501,43371.0,43369.0,0.0464]
[1646289493458,0.000501,43371.0,43370.0,0.35763414]
[1646289493712,0.000501,43371.0,43370.0,0.0464]
[1646289495912,0.000501,43371.0,43370.0,0.0524]
[1646289496312,0.000501,43371.0,43370.0,0.41003414]
[1646289497354,0.000501,43371.0,43370.0,0.40403414]
[1646289497754,0.000501,43371.0,43370.0,0.0464]
[1646289497955,0.000501,43371.0,43370.0,0.0524]
[1646289499255,0.000501,43371.0,43370.0,0.0464]
[1646289499956,0.000501,43371.0,43370.0,0.0524]
[1646289500956,0.000501,43371.0,43370.0,0.110056]
[1646289501190,0.000501,43371.0,43370.0,0.104056]
[1646289502087,0.000501,43371.0,43370.0,0.110056]
[1646289502488,0.000501,43371.0,43370.0,0.133076]
[1646289503091,0.000501,43371.0,43370.0,0.24603889]
[1646289503293,0.000501,43371.0,43370.0,0.59767303]
[1646289503491,0.000501,43371.0,43370.0,1.17757303]
[1646289503692,0.000501,43371.0,43370.0,1.27757303]
[1646289503891,0.000501,43371.0,43370.0,1.28257303]
[1646289505041,0.000501,43371.0,43370.0,0.92493889]
[1646289505241,0.000501,43371.0,43370.0,0.89691889]
[1646289505646,0.000501,43371.0,43370.0,0.7263]
[1646289506042,0.000501,43371.0,43370.0,0.89691689]
[1646289506643,0.000501,43371.0,43370.0,0.7263]
[1646289507044,0.000501,43371.0,43370.0,0.783955]
[1646289508705,0.00039173,43371.0,43370.0,0.783955]
[1646289509108,0.00039173,43371.0,43370.0,0.0464]
[1646289509709,0.00039173,43371.0,43368.0,0.09200593]
[1646289511114,0.00039173,43371.0,43368.0,0.13840593]
[1646289512010,0.00039173,43371.0,43368.0,0.14540593]
[1646289512211,0.00039173,43371.0,43370.0,0.11296289]
[1646289512445,0.00039173,43371.0,43370.0,0.15936289]
[1646289512847,0.00039173,43371.0,43370.0,0.0464]
[1646289514048,0.00039173,43371.0,43370.0,0.0524]
[1646289515053,0.00039173,43371.0,43370.0,0.16536289]
[1646289515654,0.05,43385.0,43377.0,0.00078346]
[1646289515952,0.36752838,43382.0,43378.0,0.0464]
[1646289516512,0.19618105,43382.0,43378.0,0.0464]
[1646289516710,0.22619146,43380.0,43378.0,0.0464]
[1646289517610,0.16196661,43379.0,43378.0,0.0464]
[1646289518010,0.22619146,43380.0,43378.0,0.0464]
[1646289518211,0.19618105,43382.0,43378.0,0.0464]
[1646289519210,0.21014122,43381.0,43378.0,0.0464]
[1646289519611,0.19618105,43382.0,43378.0,0.0464]
[1646289520445,0.27151683,43380.0,43378.0,0.0464]
[1646289520845,0.19618105,43382.0,43377.0,0.00078346]
[1646289521944,0.18862855,43381.0,43377.0,0.00078346]
[1646289522247,0.18862855,43381.0,43377.0,0.00578346]
[1646289522646,0.23365912,43380.0,43377.0,0.00578346]
[1646289523445,0.23365912,43380.0,43377.0,0.00078346]
[1646289524106,0.23365912,43380.0,43377.0,0.00478346]
[1646289525309,0.29132812,43380.0,43377.0,0.00078346]
[1646289526110,0.29132812,43380.0,43377.0,0.00478346]
[1646289526111,0.23365912,43380.0,43377.0,0.00478346]
[1646289527349,0.23365912,43380.0,43377.0,0.00078346]
[1646289528151,0.23365912,43380.0,43377.0,0.00478346]
[1646289528351,0.2335,43386.0,43377.0,0.00478346]
[1646289528754,0.2335,43386.0,43378.0,0.0464]
[1646289528952,0.00014551,43387.0,43378.0,0.0464]
[1646289529353,0.1674168,43383.0,43382.0,2.5091756]
[1646289529555,0.1674168,43383.0,43382.0,2.5555756]
[1646289531713,0.1674168,43383.0,43382.0,0.0464]
[1646289532108,0.1674168,43383.0,43382.0,0.0514]
[1646289533010,0.41630546,43383.0,43382.0,0.0514]
[1646289533412,0.41630546,43383.0,43382.0,0.0464]
[1646289534215,0.41630546,43383.0,43382.0,0.0514]
[1646289535258,0.5721921,43383.0,43382.0,0.0514]
[1646289535458,0.41630546,43383.0,43382.0,0.0464]
[1646289535863,0.41605072,43383.0,43382.0,0.0464]
[1646289536061,0.41605072,43383.0,43382.0,0.0514]
[1646289536461,0.16216206,43383.0,43382.0,0.0514]
[1646289537465,0.00014545,43387.0,43382.0,0.0464]
[1646289538264,1.95199793,43389.0,43382.0,0.0464]
[1646289538606,0.45253066,43387.0,43382.0,0.0464]
[1646289538808,0.00014546,43387.0,43383.0,0.35763414]
[1646289539007,0.00014546,43387.0,43381.0,0.11296289]
[1646289539008,0.00014546,43387.0,43384.0,0.0464]
[1646289539208,0.00014546,43387.0,43385.0,0.0464]
[1646289539412,0.002,43393.0,43386.0,0.0464]
[1646289539608,0.00014546,43388.0,43387.0,0.0464]
[1646289540711,0.20496079,43392.0,43387.0,0.0464]
[1646289540910,0.00183998,43390.0,43387.0,0.0464]
[1646289541317,0.00183998,43390.0,43388.0,0.24487636]
[1646289541514,0.00183998,43390.0,43389.0,0.0464]
[1646289541713,0.00183998,43390.0,43389.0,0.40403414]
[1646289541917,0.00169452,43390.0,43389.0,0.40403414]
[1646289542948,0.00169452,43390.0,43389.0,0.0464]
[1646289543549,0.00169452,43390.0,43389.0,0.1464]
[1646289545751,0.002,43393.0,43392.0,0.01262735]
[1646289545952,0.00338904,43393.0,43392.0,0.05902735]
[1646289547002,0.00338904,43393.0,43392.0,0.17799024]
[1646289548301,0.00338904,43393.0,43392.0,0.17199024]
[1646289548500,0.00338904,43393.0,43392.0,0.05902735]
[1646289553041,0.00338904,43393.0,43392.0,0.06502735]
[1646289553693,0.00338904,43393.0,43392.0,0.42266149]
[1646289553894,0.00338904,43393.0,43392.0,1.02558149]
[1646289554093,0.00238904,43393.0,43392.0,1.12558149]
[1646289554296,0.008,43399.0,43394.0,0.02302]
[1646289554494,0.003,43412.0,43400.0,0.02302]
[1646289554693,0.001,43404.0,43403.0,0.13598289]
[1646289554893,0.003,43406.0,43403.0,1.11991703]
[1646289555096,0.003,43406.0,43404.0,0.5799]
[1646289555292,0.003,43406.0,43404.0,0.64932]
[1646289555493,0.0001,43406.0,43404.0,1.10695414]
[1646289555693,0.003,43412.0,43405.0,1.76055414]
[1646289556000,0.003,43419.0,43412.0,0.02302]
[1646289556001,0.002,43416.0,43412.0,0.02302]
[1646289556195,0.003,43419.0,43412.0,0.02302]
[1646289556196,0.002,43419.0,43416.0,1.02302]
[1646289556394,0.003,43421.0,43418.0,0.71588289]
[1646289556593,0.01,43422.0,43420.0,0.02302]
[1646289556796,0.01,43422.0,43421.0,0.76228289]
[1646289557194,0.0001,43422.0,43421.0,0.86228289]
[1646289557452,0.0001,43422.0,43421.0,0.83926289]
[1646289558451,0.0001,43422.0,43421.0,0.86228289]
[1646289558651,0.0001,43422.0,43421.0,1.21953381]
[1646289560954,0.0001,43422.0,43421.0,1.22653381]
[1646289561212,0.004,43427.0,43423.0,0.82302]
[1646289561213,0.001,43425.0,43423.0,0.82302]
[1646289561420,0.004,43427.0,43425.0,0.77302]
[1646289561421,0.003,43427.0,43425.0,0.77302]
[1646289561614,0.003,43427.0,43426.0,1.00657092]
[1646289561813,0.003,43427.0,43426.0,1.10657092]
[1646289562016,0.003,43427.0,43426.0,1.45652]
[1646289564015,0.003,43427.0,43426.0,0.74932]
[1646289564216,0.01246666,43429.0,43427.0,0.85]
[1646289564420,0.051,43436.0,43428.0,2.37624524]
[1646289564421,0.004,43436.0,43428.0,2.37624524]
[1646289564617,0.002,43438.0,43435.0,0.69286289]
[1646289564618,0.001,43437.0,43435.0,0.69286289]
[1646289564849,0.05,43446.0,43437.0,0.9]
[1646289565045,0.05,43446.0,43442.0,0.69286289]
[1646289565247,3.99847318,43448.0,43442.0,0.86228289]
[1646289565445,3.99847318,43448.0,43444.0,0.5799]
[1646289565647,3.99847318,43448.0,43445.0,0.04511218]
[1646289566046,3.99847318,43448.0,43447.0,0.5799]
[1646289566247,3.99847318,43448.0,43447.0,0.6263]
[1646289566847,0.6263,43447.0,43442.0,0.1]
[1646289567052,0.3543024,43446.0,43443.0,0.0464]
[1646289567257,0.56538957,43446.0,43443.0,0.0464]
[1646289567448,0.56538957,43446.0,43442.0,0.006]
[1646289568152,0.2143755,43433.0,43427.0,0.04646148]
[1646289568355,0.3543024,43432.0,43425.0,0.29197122]
[1646289568601,0.3543024,43432.0,43410.0,0.2311]
[1646289568602,0.057601,43430.0,43410.0,0.2311]
[1646289568802,0.06239274,43414.0,43411.0,0.5]
[1646289568999,0.3543024,43429.0,43425.0,0.005]
[1646289569000,0.05,43426.0,43425.0,0.005]
[1646289569202,0.05,43426.0,43411.0,0.5]
[1646289569203,0.19724226,43416.0,43411.0,0.5]
[1646289569403,0.19724226,43416.0,43408.0,0.20261803]
[1646289569406,0.3543024,43415.0,43408.0,0.20261803]
[1646289569603,0.3543024,43415.0,43408.0,0.006]
[1646289569604,0.21591259,43410.0,43408.0,0.006]
[1646289569802,0.26828054,43414.0,43408.0,0.006]
[1646289570004,0.26828054,43414.0,43397.0,0.0115]
[1646289570005,0.06510802,43402.0,43397.0,0.0115]
[1646289570205,0.18693089,43402.0,43392.0,0.13711024]
[1646289570404,0.27545013,43402.0,43392.0,0.13711024]
[1646289570603,0.27545013,43402.0,43393.0,0.26876064]
[1646289570807,0.0889,43402.0,43396.0,0.11296289]
[1646289571705,0.0889,43402.0,43393.0,0.01152]
[1646289571706,0.18636818,43401.0,43393.0,0.01152]
[1646289572107,0.18636818,43401.0,43395.0,6.137e-05]
[1646289573157,0.18636818,43401.0,43395.0,0.008]
[1646289573359,0.0889,43402.0,43396.0,0.00017368]
[1646289573557,0.0889,43402.0,43396.0,0.11313657]
[1646289573758,0.0889,43402.0,43399.0,0.11296289]
[1646289573957,0.0889,43402.0,43396.0,0.11313657]
[1646289574359,0.0889,43402.0,43396.0,0.11296289]
[1646289574561,0.0889,43402.0,43397.0,0.35669588]
[1646289574763,0.0889,43402.0,43397.0,0.00017368]
[1646289575661,0.20841506,43408.0,43395.0,0.25]
[1646289575864,0.20841506,43408.0,43397.0,0.00017368]
[1646289576705,0.20841506,43408.0,43396.0,0.11296289]
[1646289576906,0.20841506,43408.0,43400.0,0.00016678]
[1646289578012,1.0,43413.0,43396.0,0.11296289]
[1646289578209,1.0,43413.0,43399.0,0.057617]
[1646289578811,1.0,43413.0,43400.0,0.68083915]
[1646289579012,0.17533902,43412.0,43400.0,0.56787626]
[1646289579211,0.17533902,43412.0,43399.0,0.062617]
[1646289579212,0.17074507,43410.0,43399.0,0.17557989]
[1646289579412,0.17533902,43412.0,43399.0,0.17557989]
[1646289579612,0.06072001,43407.0,43399.0,0.17557989]
[1646289579870,0.17533902,43412.0,43399.0,0.11796289]
[1646289580370,0.17533902,43412.0,43399.0,0.11296289]
[1646289580570,0.15988551,43408.0,43403.0,6.108e-05]
[1646289580773,0.16051855,43405.0,43403.0,6.108e-05]
[1646289581573,0.16051855,43405.0,43399.0,0.005]
[1646289581774,0.16051855,43405.0,43402.0,0.0001733]
[1646289582875,0.16051855,43405.0,43398.0,0.11296289]
[1646289583076,0.16051855,43405.0,43402.0,0.005]
[1646289583077,0.22747987,43404.0,43402.0,0.005]
[1646289583277,0.16051855,43405.0,43402.0,0.005]
[1646289583481,0.05369202,43404.0,43402.0,0.005]
[1646289583900,0.16051855,43405.0,43402.0,0.005]
[1646289584302,0.27107973,43404.0,43402.0,0.005]
[1646289584504,0.16051855,43405.0,43401.0,0.0001733]
[1646289584902,0.06541761,43404.0,43401.0,0.0001733]
[1646289585106,0.06541761,43404.0,43396.0,0.005]
[1646289585403,0.16051855,43405.0,43396.0,0.005]
[1646289585404,0.16051855,43405.0,43400.0,0.00016719]
[1646289586403,0.05786229,43404.0,43393.0,0.01152]
[1646289586603,0.05786229,43404.0,43400.0,0.00016719]
[1646289587648,0.18215222,43397.0,43393.0,0.01752]